fUSD/lending_fUSD_20250207
["ID","MTS","AMOUNT","RATE_DAILY","PERIOD"]
[352041994,1738895451721,-500.0,0.00017396,2]
[352041995,1738895451731,-283.70149876,0.00017396,2]
[352041996,1738895451740,-515.71964567,0.00017396,2]
[352041997,1738895451750,-481.30449126,0.00017396,2]
[352041998,1738895451759,-500.0,0.00017396,2]
[352041999,1738895451768,-277.43999374,0.00017396,2]
[352042000,1738895451777,-594.1525581,0.00017396,2]
[352042001,1738895451786,-150.0,0.00017396,2]
[352042002,1738895451795,-186.60680169,0.00017396,2]
[352042003,1738895451804,-500.0,0.00017397,2]
[352042004,1738895451813,-351.54931143,0.00017397,2]
[352042005,1738895451823,-500.0,0.00017397,2]
[352042006,1738895451832,-600.17811727,0.00017397,2]
[352042007,1738895451842,-500.0,0.00017397,2]
[352042008,1738895451851,-500.0,0.00017397,2]
[352042009,1738895451861,-500.0,0.00017397,2]
[352042010,1738895451870,-500.0,0.00017397,2]
[352042011,1738895451879,-500.0,0.00017397,2]
[352042012,1738895451888,-649.13,0.00017397,2]
[352042013,1738895451897,-500.0,0.00017397,2]
[352042014,1738895451907,-368.90895308,0.00017397,2]
[352042015,1738895451916,-500.0,0.00017397,2]
[352042016,1738895451925,-500.0,0.00017397,2]
[352042017,1738895451935,-500.0,0.00017397,2]
[352042018,1738895451944,-264.71453391,0.00017397,2]
[352042019,1738895451954,-500.0,0.00017397,2]
[352042020,1738895451963,-297.244076,0.00017397,2]
[352042021,1738895451972,-500.0,0.00017397,2]
[352042022,1738895451982,-500.0,0.00017397,2]
[352042023,1738895451991,-307.064032,0.00017397,2]
[352042024,1738895452001,-500.0,0.00017397,2]
[352042025,1738895452010,-500.0,0.00017397,2]
[352042026,1738895452019,-500.0,0.00017397,2]
[352042027,1738895452029,-510.74,0.00017397,2]
[352042028,1738895452038,-500.0,0.00017397,2]
[352042029,1738895452047,-500.0,0.00017397,2]
[352042030,1738895452056,-500.0,0.00017397,2]
[352042031,1738895452065,-567.27,0.00017397,2]
[352042032,1738895452075,-500.0,0.00017397,2]
[352042033,1738895452086,-500.0,0.00017397,2]
[352042034,1738895452095,-500.0,0.00017397,2]
[352042035,1738895452104,-500.0,0.00017397,2]
[352042036,1738895452113,-500.0,0.00017397,2]
[352042037,1738895452123,-500.0,0.00017397,2]
[352042038,1738895452133,-500.0,0.00017397,2]
[352042039,1738895452143,-500.0,0.00017397,2]
[352042040,1738895452152,-500.0,0.00017397,2]
[352042041,1738895452162,-680.18,0.00017397,2]
[352042042,1738895452172,-539.28,0.00017397,2]
[352042043,1738895452182,-500.0,0.00017397,2]
[352042044,1738895452191,-702.09,0.00017397,2]
[352042045,1738895452201,-500.0,0.00017397,2]
[352042046,1738895452210,-500.0,0.00017397,2]
[352042047,1738895452219,-653.43,0.00017397,2]
[352042048,1738895452228,-500.0,0.00017397,2]
[352042049,1738895452237,-500.0,0.00017397,2]
[352042050,1738895452247,-1734.92,0.00017397,2]
[352042051,1738895452257,-551.29,0.00017397,2]
[352042052,1738895452266,-500.0,0.00017397,2]
[352042053,1738895452275,-500.0,0.00017397,2]
[352042054,1738895452284,-784.75,0.00017397,2]
[352042055,1738895452294,-1867.58,0.00017397,2]
[352042056,1738895452303,-695.7,0.00017397,2]
[352042057,1738895452312,-500.0,0.00017397,2]
[352042058,1738895452322,-1070.52,0.00017397,2]
[352042059,1738895452331,-500.0,0.00017397,2]
[352042060,1738895452341,-1235.97,0.00017397,2]
[352042061,1738895452351,-1422.89,0.00017397,2]
[352042062,1738895452360,-500.0,0.00017397,2]
[352042063,1738895452370,-472.98442401,0.00017397,2]
[352042064,1738895452379,-692.8,0.00017397,2]
[352042065,1738895452388,-849.57,0.00017397,2]
[352042066,1738895452398,-500.0,0.00017397,2]
[352042067,1738895452407,-983.82,0.00017397,2]
[352042068,1738895452417,-648.16,0.00017397,2]
[352042069,1738895452426,-500.0,0.00017397,2]
[352042070,1738895452436,-500.0,0.00017397,2]
[352042071,1738895452445,-1366.1,0.00017397,2]
[352042072,1738895452454,-739.4,0.00017397,2]
[352042073,1738895452464,-555.97,0.00017397,2]
[352042074,1738895452473,-870.22,0.00017397,2]
[352042075,1738895452483,-500.0,0.00017397,2]
[352042076,1738895452493,-604.43,0.00017397,2]
[352042077,1738895452502,-651.47,0.00017397,2]
[352042078,1738895452512,-1242.61,0.00017397,2]
[352042079,1738895452522,-645.08,0.00017397,2]
[352042080,1738895452532,-500.0,0.00017397,2]
[352042081,1738895452542,-500.0,0.00017397,2]
[352042082,1738895452551,-791.64,0.00017397,2]
[352042083,1738895452561,-1208.53,0.00017397,2]
[352042084,1738895452575,-1108.61,0.00017397,2]
[352042085,1738895452584,-500.0,0.00017397,2]
[352042086,1738895452594,-2627.99,0.00017397,2]
[352042087,1738895452604,-1506.56,0.00017397,2]
[352042088,1738895452613,-1375.62,0.00017397,2]
[352042089,1738895452623,-690.72,0.00017397,2]
[352042090,1738895452632,-2827.92,0.00017397,2]
[352042091,1738895452642,-795.04,0.00017397,2]
[352042092,1738895452652,-500.0,0.00017397,2]
[352042093,1738895452663,-1197.66,0.00017397,2]
[352042094,1738895452673,-603.67,0.00017397,2]
[352042095,1738895452685,-516.64276084,0.00017397,2]
[352042096,1738895452695,-772.87,0.00017397,2]
[352042097,1738895452705,-718.93,0.00017397,2]
[352042098,1738895452715,-500.0,0.00017397,2]
[352042099,1738895452724,-649.67,0.00017397,2]
[352042100,1738895452734,-633.97,0.00017397,2]
[352042101,1738895452744,-591.06412592,0.00017397,2]
[352042102,1738895452753,-978.53,0.00017397,2]
[352042103,1738895452764,-677.15,0.00017397,2]
[352042104,1738895452774,-500.0,0.00017397,2]
[352042105,1738895452784,-541.5,0.00017397,2]
[352042106,1738895452794,-1320.16,0.00017397,2]
[352042107,1738895452804,-537.76,0.00017397,2]
[352042108,1738895452814,-1604.45,0.00017397,2]
[352042109,1738895452824,-1277.59,0.00017397,2]
[352042110,1738895452833,-905.79,0.00017397,2]
[352042111,1738895452843,-676.31,0.00017397,2]
[352042112,1738895452852,-1116.2,0.00017397,2]
[352042113,1738895452862,-1406.75,0.00017397,2]
[352042114,1738895452871,-500.0,0.00017397,2]
[352042115,1738895452880,-721.61,0.00017397,2]
[352042116,1738895452890,-2569.87,0.00017397,2]
[352042117,1738895452899,-936.14,0.00017397,2]
[352042118,1738895452908,-1528.36,0.00017397,2]
[352042119,1738895452918,-649.05,0.00017397,2]
[352042120,1738895452929,-667.45,0.00017397,2]
[352042121,1738895452985,-774.79,0.00017397,2]
[352042122,1738895452996,-500.0,0.00017397,2]
[352042123,1738895453005,-1208.52,0.00017397,2]
[352042124,1738895453015,-437.9738167,0.00017397,2]
[352042125,1738895453024,-500.0,0.00017397,2]
[352042126,1738895453034,-539.35,0.00017397,2]
[352042127,1738895453045,-846.32,0.00017397,2]
[352042128,1738895453054,-769.85,0.00017397,2]
[352042129,1738895453064,-724.26,0.00017397,2]
[352042130,1738895453073,-2264.55,0.00017397,2]
[352042131,1738895453083,-500.0,0.00017397,2]
[352042132,1738895453092,-656.81,0.00017397,2]
[352042133,1738895453102,-647.4598979,0.00017397,2]
[352042134,1738895453112,-946.94,0.00017397,2]
[352042135,1738895453122,-859.01,0.00017397,2]
[352042136,1738895453132,-500.0,0.00017397,2]
[352042137,1738895453142,-834.43,0.00017397,2]
[352042138,1738895453152,-500.0,0.00017397,2]
[352042139,1738895453161,-1416.28,0.00017397,2]
[352042140,1738895453171,-551.62,0.00017397,2]
[352042141,1738895453182,-500.0,0.00017397,2]
[352042142,1738895453191,-657.98,0.00017397,2]
[352042143,1738895453201,-218.29528522,0.00017397,2]
[352042144,1738895453211,-908.12,0.00017397,2]
[352042145,1738895453221,-16712.0,0.00017397,2]
[352042146,1738895453230,-57316.49366905,0.00017399,2]
[352042147,1738895453239,-188.231985,0.000174,2]
[352042148,1738895453249,-1000.0,0.000174,2]
[352042149,1738895453258,-150.0,0.000174,2]
[352042150,1738895453268,-150.0,0.00017402,2]
[352042151,1738895453277,-721.6749168,0.00017406,2]
[352042152,1738895453287,-57316.49366905,0.0001741,2]
[352042153,1738895453297,-500.50732077,0.00017411,2]
[352042154,1738895453306,-500.50732077,0.00017417,2]
[352042155,1738895453316,-57316.49366905,0.00017422,2]
[352042156,1738895453325,-150.0,0.00017443,2]
[352042157,1738895453334,-150.0,0.00017443,2]
[352042158,1738895453344,-500.50732077,0.00017443,2]
[352042159,1738895453354,-9097.30362627,0.00017451,2]
[352042160,1738895453364,-9097.30362626,0.00017451,2]
[352042161,1738895453373,-9097.30362626,0.00017451,2]
[352042162,1738895453382,-8146.00470308,0.00017451,2]
[352042163,1738895453392,-419.97406451,0.00017452,5]
[352042164,1738895453402,-150.0,0.00017454,2]
[352042165,1738895453411,-150.073,0.00017457,2]
[352042166,1738895453421,-279.512,0.00017457,2]
[352042167,1738895453432,-153.578,0.00017457,2]
[352042168,1738895453441,-150.0,0.00017457,2]
[352042169,1738895453451,-205.77,0.00017457,2]
[352042170,1738895453460,-201.582,0.00017457,2]
[352042171,1738895453469,-154.77,0.00017457,2]
[352042172,1738895453478,-252.82,0.00017457,2]
[352042173,1738895453487,-200.0,0.00017462,2]
[352042174,1738895453497,-8146.00470308,0.00017469,2]
[352042175,1738895453507,-333.4150621,0.0001747,2]
[352042176,1738895453516,-151.0,0.00017471,2]
[352042177,1738895453526,-260.072492,0.00017471,2]
[352042178,1738895453536,-500.0,0.00017473,2]
[352042179,1738895453546,-228.69,0.0001748,2]
[352042180,1738895453556,-500.50732077,0.0001748,2]
[352042181,1738895453568,-150.0,0.00017484,2]
[352042182,1738895453578,-1638.66621133,0.00017498,2]
[352042183,1738895453588,-10898.85739493,0.000175,3]
[352042184,1738895453597,-1043.04,0.00017532,2]
[352042185,1738895453608,-765.92,0.00017532,2]
[352042186,1738895453618,-500.0,0.00017532,2]
[352042187,1738895453627,-840.88,0.00017532,2]
[352042188,1738895453637,-307.53,0.00017533,2]
[352042189,1738895453648,-541.9,0.00017533,2]
[352042190,1738895453658,-500.0,0.00017533,2]
[352042191,1738895453668,-500.0,0.00017533,2]
[352042192,1738895453678,-217.73147904,0.00017533,2]
[352042193,1738895453688,-500.0,0.00017533,2]
[352042194,1738895453698,-378.5,0.00017533,2]
[352042195,1738895453707,-500.0,0.00017533,2]
[352042196,1738895453716,-453.95460135,0.00017533,2]
[352042197,1738895453726,-500.0,0.00017533,2]
[352042198,1738895453736,-150.0,0.00017533,2]
[352042199,1738895453746,-500.0,0.00017534,2]
[352042200,1738895453755,-500.0,0.00017534,2]
[352042201,1738895453764,-500.0,0.00017534,2]
[352042202,1738895453774,-500.0,0.00017534,2]
[352042203,1738895453783,-500.0,0.00017534,2]
[352042204,1738895453792,-500.0,0.00017534,2]
[352042205,1738895453803,-500.0,0.00017534,2]
[352042206,1738895453812,-649.13,0.00017534,2]
[352042207,1738895453822,-500.0,0.00017534,2]
[352042208,1738895453832,-500.0,0.00017534,2]
[352042209,1738895453844,-500.0,0.00017534,2]
[352042210,1738895453855,-500.0,0.00017534,2]
[352042211,1738895453864,-500.0,0.00017534,2]
[352042212,1738895453873,-1453.67,0.00017534,4]
[352042213,1738895453883,-297.244076,0.00017534,2]
[352042214,1738895453891,-500.0,0.00017534,2]
[352042215,1738895453900,-500.0,0.00017534,2]
[352042216,1738895453910,-307.064032,0.00017534,2]
[352042217,1738895453919,-500.0,0.00017534,2]
[352042218,1738895453928,-500.0,0.00017534,2]
[352042219,1738895453938,-512.39618032,0.00017534,2]
[352042220,1738895453947,-510.74,0.00017534,2]
[352042221,1738895453956,-500.0,0.00017534,2]
[352042222,1738895453966,-500.0,0.00017534,2]
[352042223,1738895453975,-500.0,0.00017534,2]
[352042224,1738895453984,-567.27,0.00017534,2]
[352042225,1738895453993,-500.0,0.00017534,2]
[352042226,1738895454002,-500.0,0.00017534,2]
[352042227,1738895454011,-500.0,0.00017534,2]
[352042228,1738895454020,-500.0,0.00017534,2]
[352042229,1738895454029,-500.0,0.00017534,2]
[352042230,1738895454038,-547.68641011,0.00017534,2]
[352042231,1738895454048,-500.0,0.00017534,2]
[352042232,1738895454057,-500.0,0.00017534,2]
[352042233,1738895454066,-350.0594059,0.00017534,2]
[352042234,1738895454075,-680.18,0.00017534,2]
[352042235,1738895454085,-539.28,0.00017534,2]
[352042236,1738895454094,-500.0,0.00017534,2]
[352042237,1738895454103,-702.09,0.00017534,2]
[352042238,1738895454112,-500.0,0.00017534,2]
[352042239,1738895454122,-500.0,0.00017534,2]
[352042240,1738895454131,-653.43,0.00017534,2]
[352042241,1738895454140,-500.0,0.00017534,2]
[352042242,1738895454149,-355.51181221,0.00017534,2]
[352042243,1738895454159,-1734.92,0.00017534,2]
[352042244,1738895454168,-551.29,0.00017534,2]
[352042245,1738895454178,-500.0,0.00017534,2]
[352042246,1738895454187,-500.0,0.00017534,2]
[352042247,1738895454196,-784.75,0.00017534,2]
[352042248,1738895454205,-1867.58,0.00017534,2]
[352042249,1738895454214,-695.7,0.00017534,2]
[352042250,1738895454224,-500.0,0.00017534,2]
[352042251,1738895454233,-1070.52,0.00017534,2]
[352042252,1738895454243,-500.0,0.00017534,2]
[352042253,1738895454252,-1235.97,0.00017534,2]
[352042254,1738895454262,-1422.89,0.00017534,2]
[352042255,1738895454271,-271.80916197,0.00017534,2]
[352042256,1738895454280,-692.8,0.00017534,2]
[352042257,1738895454290,-849.57,0.00017534,2]
[352042258,1738895454300,-500.0,0.00017534,2]
[352042259,1738895454309,-983.82,0.00017534,2]
[352042260,1738895454319,-648.16,0.00017534,2]
[352042261,1738895454328,-500.0,0.00017534,2]
[352042262,1738895454337,-500.0,0.00017534,2]
[352042263,1738895454347,-1366.1,0.00017534,2]
[352042264,1738895454356,-739.4,0.00017534,2]
[352042265,1738895454366,-555.97,0.00017534,2]
[352042266,1738895454376,-870.22,0.00017534,2]
[352042267,1738895454385,-500.0,0.00017534,2]
[352042268,1738895454394,-604.43,0.00017534,2]
[352042269,1738895454404,-651.47,0.00017534,2]
[352042270,1738895454414,-1242.61,0.00017534,2]
[352042271,1738895454423,-645.08,0.00017534,2]
[352042272,1738895454437,-500.0,0.00017534,2]
[352042273,1738895454446,-500.0,0.00017534,2]
[352042274,1738895454455,-791.64,0.00017534,2]
[352042275,1738895454465,-1208.53,0.00017534,2]
[352042276,1738895454475,-1108.61,0.00017534,2]
[352042277,1738895454484,-636.52018886,0.00017534,2]
[352042278,1738895454494,-2627.99,0.00017534,2]
[352042279,1738895454504,-1506.56,0.00017534,2]
[352042280,1738895454514,-1375.62,0.00017534,2]
[352042281,1738895454523,-690.72,0.00017534,2]
[352042282,1738895454533,-2827.92,0.00017534,2]
[352042283,1738895454542,-795.04,0.00017534,2]
[352042284,1738895454551,-500.0,0.00017534,2]
[352042285,1738895454564,-1197.66,0.00017534,2]
[352042286,1738895454573,-603.67,0.00017534,2]
[352042287,1738895454583,-772.87,0.00017534,2]
[352042288,1738895454592,-718.93,0.00017534,2]
[352042289,1738895454603,-500.0,0.00017534,2]
[352042290,1738895454612,-633.97,0.00017534,2]
[352042291,1738895454622,-649.67,0.00017534,2]
[352042292,1738895454631,-978.53,0.00017534,2]
[352042293,1738895454644,-677.15,0.00017534,2]
[352042294,1738895454654,-500.0,0.00017534,2]
[352042295,1738895454664,-541.5,0.00017534,2]
[352042296,1738895454673,-1320.16,0.00017534,2]
[352042297,1738895454685,-537.76,0.00017534,2]
[352042298,1738895454695,-1604.45,0.00017534,2]
[352042299,1738895454705,-1277.59,0.00017534,2]
[352042300,1738895454715,-905.79,0.00017534,2]
[352042301,1738895454724,-676.31,0.00017534,2]
[352042302,1738895454734,-1116.2,0.00017534,2]
[352042303,1738895454744,-1406.75,0.00017534,2]
[352042304,1738895454755,-500.0,0.00017534,2]
[352042305,1738895454764,-721.61,0.00017534,2]
[352042306,1738895454774,-2569.87,0.00017534,2]
[352042307,1738895454784,-936.14,0.00017534,2]
[352042308,1738895454794,-1528.36,0.00017534,2]
[352042309,1738895454804,-649.05,0.00017534,2]
[352042310,1738895454813,-667.45,0.00017534,2]
[352042311,1738895454822,-774.79,0.00017534,2]
[352042312,1738895454832,-500.0,0.00017534,2]
[352042313,1738895454849,-1208.52,0.00017534,2]
[352042314,1738895454858,-500.0,0.00017534,2]
[352042315,1738895454868,-539.35,0.00017534,2]
[352042316,1738895454878,-846.32,0.00017534,2]
[352042317,1738895454888,-769.85,0.00017534,2]
[352042318,1738895454899,-724.26,0.00017534,2]
[352042319,1738895454910,-2264.55,0.00017534,2]
[352042320,1738895454919,-500.0,0.00017534,2]
[352042321,1738895454931,-656.81,0.00017534,2]
[352042322,1738895454940,-946.94,0.00017534,2]
[352042323,1738895454950,-859.01,0.00017534,2]
[352042324,1738895454960,-500.0,0.00017534,2]
[352042325,1738895454970,-834.43,0.00017534,2]
[352042326,1738895454979,-500.0,0.00017534,2]
[352042327,1738895454989,-1416.28,0.00017534,2]
[352042328,1738895454999,-551.62,0.00017534,2]
[352042329,1738895455008,-500.0,0.00017534,2]
[352042330,1738895455018,-657.98,0.00017534,2]
[352042331,1738895455027,-908.12,0.00017534,2]
[352042332,1738895455036,-419.97406451,0.00017534,5]
[352042333,1738895455046,-150.0,0.00017566,2]
[352042334,1738895455055,-150.0,0.00017569,2]
[352042335,1738895455064,-150.0,0.00017573,2]
[352042336,1738895455073,-700.0,0.00017604,2]
[352042337,1738895455083,-419.97406451,0.00017616,5]
[352042338,1738895455093,-1000.0,0.00017636,2]
[352042339,1738895455103,-1043.04,0.00017669,2]
[352042340,1738895455114,-765.92,0.00017669,2]
[352042341,1738895455123,-500.0,0.00017669,2]
[352042342,1738895455132,-840.88,0.00017669,2]
[352042343,1738895455142,-307.53,0.0001767,2]
[352042344,1738895455152,-541.9,0.0001767,2]
[352042345,1738895455164,-403.04490894,0.0001767,2]
[352042346,1738895455174,-500.0,0.0001767,2]
[352042347,1738895455184,-500.0,0.0001767,2]
[352042348,1738895455195,-378.5,0.0001767,2]
[352042349,1738895455205,-500.0,0.0001767,2]
[352042350,1738895455215,-500.0,0.0001767,2]
[352042351,1738895455224,-150.0,0.0001767,2]
[352042352,1738895455234,-500.0,0.00017671,2]
[352042353,1738895455244,-500.0,0.00017671,2]
[352042354,1738895455253,-500.0,0.00017671,2]
[352042355,1738895455263,-500.0,0.00017671,2]
[352042356,1738895455272,-500.0,0.00017671,2]
[352042357,1738895455282,-500.0,0.00017671,2]
[352042358,1738895455291,-500.0,0.00017671,2]
[352042359,1738895455300,-649.13,0.00017671,2]
[352042360,1738895455310,-500.0,0.00017671,2]
[352042361,1738895455319,-500.0,0.00017671,2]
[352042362,1738895455329,-500.0,0.00017671,2]
[352042363,1738895455339,-500.0,0.00017671,2]
[352042364,1738895455348,-500.0,0.00017671,2]
[352042365,1738895455357,-297.244076,0.00017671,2]
[352042366,1738895455367,-500.0,0.00017671,2]
[352042367,1738895455377,-500.0,0.00017671,2]
[352042368,1738895455386,-307.064032,0.00017671,2]
[352042369,1738895455396,-500.0,0.00017671,2]
[352042370,1738895455406,-500.0,0.00017671,2]
[352042371,1738895455416,-510.74,0.00017671,2]
[352042372,1738895455426,-500.0,0.00017671,2]
[352042373,1738895455440,-500.0,0.00017671,2]
[352042374,1738895455450,-500.0,0.00017671,2]
[352042375,1738895455460,-567.27,0.00017671,2]
[352042376,1738895455470,-500.0,0.00017671,2]
[352042377,1738895455480,-500.0,0.00017671,2]
[352042378,1738895455490,-500.0,0.00017671,2]
[352042379,1738895455500,-500.0,0.00017671,2]
[352042380,1738895455510,-500.0,0.00017671,2]
[352042381,1738895455520,-500.0,0.00017671,2]
[352042382,1738895455529,-500.0,0.00017671,2]
[352042383,1738895455539,-680.18,0.00017671,2]
[352042384,1738895455549,-539.28,0.00017671,2]
[352042385,1738895455560,-500.0,0.00017671,2]
[352042386,1738895455570,-702.09,0.00017671,2]
[352042387,1738895455581,-500.0,0.00017671,2]
[352042388,1738895455591,-500.0,0.00017671,2]
[352042389,1738895455600,-653.43,0.00017671,2]
[352042390,1738895455610,-500.0,0.00017671,2]
[352042391,1738895455621,-1734.92,0.00017671,2]
[352042392,1738895455632,-551.29,0.00017671,2]
[352042393,1738895455641,-500.0,0.00017671,2]
[352042394,1738895455652,-435.37625369,0.00017671,2]
[352042395,1738895455662,-784.75,0.00017671,2]
[352042396,1738895455673,-1867.58,0.00017671,2]
[352042397,1738895455687,-695.7,0.00017671,2]
[352042398,1738895455697,-500.0,0.00017671,2]
[352042399,1738895455707,-1070.52,0.00017671,2]
[352042400,1738895455717,-500.0,0.00017671,2]
[352042401,1738895455727,-1235.97,0.00017671,2]
[352042402,1738895455738,-1422.89,0.00017671,2]
[352042403,1738895455747,-692.8,0.00017671,2]
[352042404,1738895455757,-849.57,0.00017671,2]
[352042405,1738895455766,-500.0,0.00017671,2]
[352042406,1738895455776,-983.82,0.00017671,2]
[352042407,1738895455786,-648.16,0.00017671,2]
[352042408,1738895455796,-500.0,0.00017671,2]
[352042409,1738895455806,-500.0,0.00017671,2]
[352042410,1738895455816,-1366.1,0.00017671,2]
[352042411,1738895455826,-739.4,0.00017671,2]
[352042412,1738895455836,-555.97,0.00017671,2]
[352042413,1738895455845,-870.22,0.00017671,2]
[352042414,1738895455855,-500.0,0.00017671,2]
[352042415,1738895455865,-604.43,0.00017671,2]
[352042416,1738895455875,-651.47,0.00017671,2]
[352042417,1738895455885,-1242.61,0.00017671,2]
[352042418,1738895455895,-645.08,0.00017671,2]
[352042419,1738895455905,-500.0,0.00017671,2]
[352042420,1738895455915,-500.0,0.00017671,2]
[352042421,1738895455925,-791.64,0.00017671,2]
[352042422,1738895455937,-1208.53,0.00017671,2]
[352042423,1738895455948,-1108.61,0.00017671,2]
[352042424,1738895455958,-2627.99,0.00017671,2]
[352042425,1738895455967,-1506.56,0.00017671,2]
[352042426,1738895455977,-1375.62,0.00017671,2]
[352042427,1738895455987,-690.72,0.00017671,2]
[352042428,1738895455996,-2827.92,0.00017671,2]
[352042429,1738895456005,-795.04,0.00017671,2]
[352042430,1738895456015,-500.0,0.00017671,2]
[352042431,1738895456025,-1197.66,0.00017671,2]
[352042432,1738895456035,-603.67,0.00017671,2]
[352042433,1738895456044,-772.87,0.00017671,2]
[352042434,1738895456055,-718.93,0.00017671,2]
[352042435,1738895456066,-500.0,0.00017671,2]
[352042436,1738895456075,-633.97,0.00017671,2]
[352042437,1738895456087,-649.67,0.00017671,2]
[352042438,1738895456096,-978.53,0.00017671,2]
[352042439,1738895456106,-677.15,0.00017671,2]
[352042440,1738895456117,-500.0,0.00017671,2]
[352042441,1738895456127,-541.5,0.00017671,2]
[352042442,1738895456136,-1320.16,0.00017671,2]
[352042443,1738895456146,-537.76,0.00017671,2]
[352042444,1738895456156,-1604.45,0.00017671,2]
[352042445,1738895456166,-1277.59,0.00017671,2]
[352042446,1738895456176,-905.79,0.00017671,2]
[352042447,1738895456188,-676.31,0.00017671,2]
[352042448,1738895456198,-1116.2,0.00017671,2]
[352042449,1738895456208,-1406.75,0.00017671,2]
[352042450,1738895456218,-500.0,0.00017671,2]
[352042451,1738895456229,-721.61,0.00017671,2]
[352042452,1738895456239,-2569.87,0.00017671,2]
[352042453,1738895456249,-936.14,0.00017671,2]
[352042454,1738895456261,-1528.36,0.00017671,2]
[352042455,1738895456270,-649.05,0.00017671,2]
[352042456,1738895456280,-667.45,0.00017671,2]
[352042457,1738895456289,-774.79,0.00017671,2]
[352042458,1738895456302,-500.0,0.00017671,2]
[352042459,1738895456312,-1208.52,0.00017671,2]
[352042460,1738895456323,-500.0,0.00017671,2]
[352042461,1738895456332,-539.35,0.00017671,2]
[352042462,1738895456343,-846.32,0.00017671,2]
[352042463,1738895456355,-769.85,0.00017671,2]
[352042464,1738895456364,-724.26,0.00017671,2]
[352042465,1738895456374,-2264.55,0.00017671,2]
[352042466,1738895456385,-500.0,0.00017671,2]
[352042467,1738895456395,-656.81,0.00017671,2]
[352042468,1738895456404,-946.94,0.00017671,2]
[352042469,1738895456414,-859.01,0.00017671,2]
[352042470,1738895456424,-500.0,0.00017671,2]
[352042471,1738895456434,-834.43,0.00017671,2]
[352042472,1738895456444,-534.82781144,0.00017671,2]
[352042473,1738895456454,-1416.28,0.00017671,2]
[352042474,1738895456464,-551.62,0.00017671,2]
[352042475,1738895456474,-500.0,0.00017671,2]
[352042476,1738895456484,-657.98,0.00017671,2]
[352042477,1738895456494,-908.12,0.00017671,2]
[352042478,1738895456503,-507.05958037,0.00017673,2]
[352042479,1738895456514,-150.0,0.00017684,2]
[352042480,1738895456523,-150.0,0.00017685,2]
[352042481,1738895456533,-419.97406451,0.00017699,5]
[352042482,1738895456543,-2300.0,0.000177,6]
[352042483,1738895456553,-474.44,0.00017745,2]
[352042484,1738895456566,-1000.0,0.0001775,2]
[352042485,1738895456576,-150.0,0.00017761,2]
[352042486,1738895456585,-150.0,0.00017761,2]
[352042487,1738895456595,-152.0,0.00017761,6]
[352042488,1738895456606,-150.0,0.00017774,2]
[352042489,1738895456616,-419.97406451,0.00017781,5]
[352042490,1738895456626,-721.6749168,0.00017789,2]
[352042491,1738895456636,-1148.47617539,0.00017796,2]
[352042492,1738895456648,-722.23575232,0.00017796,2]
[352042493,1738895456658,-2900.0,0.000178,6]